bitfinex/quotes_BTCUSD_20241116
["timestamp","ask_amount","ask_price","bid_price","bid_amount"]
[1731741730567,0.001715,91335.0,91334.0,0.7271019]
[1731741730818,0.001715,91335.0,91334.0,0.72640761]
[1731741731490,0.001715,91335.0,91334.0,0.87327835]
[1731741732210,0.001715,91335.0,91334.0,0.51180632]
[1731741732438,0.001715,91335.0,91334.0,0.36493558]
[1731741739782,0.001715,91335.0,91334.0,0.28233558]
[1731741740019,0.22026455,91335.0,91334.0,0.14326557]
[1731741740263,0.22026455,91335.0,91334.0,0.04533785]
[1731741740264,0.24326455,91335.0,91334.0,0.04533785]
[1731741740478,0.26190725,91335.0,91334.0,0.04533785]
[1731741740695,0.109493,91330.0,91329.0,0.09792772]
[1731741740909,0.109493,91330.0,91328.0,0.08150973]
[1731741740910,0.21855555,91330.0,91328.0,0.08150973]
[1731741741132,0.10906255,91329.0,91328.0,0.08150973]
[1731741741604,0.21855655,91329.0,91328.0,0.08150973]
[1731741742240,0.10906255,91329.0,91328.0,0.08150973]
[1731741744067,0.11387701,91329.0,91328.0,0.08150973]
[1731741745647,0.11387701,91329.0,91328.0,0.19100473]
[1731741745648,0.00481446,91329.0,91328.0,0.19100473]
[1731741745889,0.00766588,91329.0,91328.0,0.19100473]
[1731741746104,0.001715,91335.0,91334.0,0.109488]
[1731741746348,0.001715,91335.0,91334.0,0.19099773]
[1731741748485,0.22026455,91335.0,91332.0,0.09798208]
[1731741748701,0.10906255,91334.0,91331.0,0.09798208]
[1731741748942,0.113889,91334.0,91329.0,0.09798208]
[1731741749167,0.113889,91334.0,91330.0,0.09798208]
[1731741749400,0.223377,91334.0,91330.0,0.09798208]
[1731741749627,0.223377,91334.0,91328.0,0.109494]
[1731741749840,0.113889,91334.0,91327.0,0.19100573]
[1731741750284,0.223377,91334.0,91327.0,0.19100573]
[1731741750965,0.113889,91334.0,91328.0,0.109495]
[1731741751615,0.223377,91334.0,91328.0,0.109495]
[1731741752070,0.113889,91334.0,91327.0,0.08150973]
[1731741752295,0.10949,91333.0,91327.0,0.19100573]
[1731741752518,0.10906255,91332.0,91324.0,0.218998]
[1731741752764,0.1138842,91332.0,91327.0,0.19100573]
[1731741754521,0.109492,91331.0,91327.0,0.08150973]
[1731741754737,0.10906255,91330.0,91328.0,0.0017152]
[1731741755170,0.00481446,91329.0,91328.0,0.0017152]
[1731741755428,0.00765057,91329.0,91328.0,0.0017152]
[1731741756119,0.22620712,91329.0,91328.0,0.0017152]
[1731741761810,0.11671312,91329.0,91328.0,0.08322493]
[1731741762024,0.11671312,91329.0,91328.0,0.19271993]
[1731741762953,0.10906255,91329.0,91328.0,0.19271993]
[1731741763667,0.11669944,91329.0,91328.0,0.19271993]
[1731741765901,0.10906255,91329.0,91328.0,0.19271993]
[1731741768446,0.11669944,91329.0,91328.0,0.19271993]
[1731741768668,0.10906255,91329.0,91328.0,0.19271993]
[1731741770009,0.10906255,91329.0,91328.0,0.1112102]
[1731741770664,0.11670557,91329.0,91328.0,0.1112102]
[1731741775378,0.10906255,91329.0,91328.0,0.1112102]
[1731741776329,0.0008576,91334.0,91333.0,0.109489]
[1731741776576,0.0008576,91334.0,91333.0,0.19099873]
[1731741777513,0.10992015,91334.0,91333.0,0.109489]
[1731741778650,0.11756814,91334.0,91333.0,0.109489]
[1731741778853,0.10992015,91334.0,91333.0,0.109489]
[1731741779063,0.11756814,91334.0,91333.0,0.109489]
[1731741785216,0.11756814,91334.0,91333.0,0.20759401]
[1731741785694,0.11756814,91334.0,91333.0,0.20766941]
[1731741787276,0.20376848,91334.0,91333.0,0.09818041]
[1731741787942,0.21293567,91334.0,91333.0,0.09818041]
[1731741788865,0.005,91333.0,91331.0,0.109491]
[1731741789078,0.11876289,91332.0,91331.0,0.109491]
[1731741789315,0.12358454,91332.0,91331.0,0.109491]
[1731741790898,0.12641061,91332.0,91331.0,0.109491]
[1731741791348,0.13557924,91332.0,91331.0,0.109491]
[1731741791558,0.12641061,91332.0,91331.0,0.109491]
[1731741794872,0.12641206,91332.0,91331.0,0.109491]
[1731741795534,0.13141206,91332.0,91331.0,0.109491]
[1731741804865,0.12171027,91332.0,91331.0,0.109491]
[1731741805107,0.13141102,91332.0,91331.0,0.109491]
[1731741806723,0.12171027,91332.0,91331.0,0.109491]
[1731741808947,0.11671027,91332.0,91331.0,0.109491]
[1731741809226,0.10906255,91332.0,91331.0,0.239291]
[1731741809450,0.0008576,91334.0,91331.0,0.239291]
[1731741809451,0.0008576,91334.0,91333.0,0.109489]
[1731741810095,0.0008576,91334.0,91333.0,0.47208381]
[1731741810320,0.0008576,91334.0,91333.0,0.76367211]
[1731741811213,0.0008576,91334.0,91333.0,0.51808381]
[1731741812619,0.0008576,91334.0,91333.0,0.52008381]
[1731741812851,0.0008576,91334.0,91333.0,0.51808381]
[1731741815458,0.0008576,91334.0,91333.0,0.71437113]
[1731741815856,0.0008576,91334.0,91333.0,0.51808381]
[1731741816273,0.0008576,91334.0,91333.0,0.71435608]
[1731741818070,0.0008576,91334.0,91333.0,0.79586581]
[1731741819378,0.0008576,91334.0,91333.0,0.59959354]
[1731741821359,0.0008576,91334.0,91333.0,0.59900816]
[1731741823560,0.0008576,91334.0,91333.0,0.51749843]
[1731741823793,0.0008576,91334.0,91333.0,0.59900816]
[1731741824693,0.0008576,91334.0,91333.0,0.51749843]
[1731741824907,0.10992015,91334.0,91333.0,0.47149843]
[1731741825343,0.10992015,91334.0,91333.0,0.20756127]
[1731741825554,0.10992015,91334.0,91333.0,0.109489]
[1731741825768,0.1175756,91334.0,91333.0,0.109489]
[1731741827316,0.1711756,91334.0,91333.0,0.109489]
[1731741827755,0.1808665,91334.0,91333.0,0.109489]
[1731741828213,0.18086649,91334.0,91333.0,0.109489]
[1731741829364,0.005,91329.0,91328.0,0.1112102]
[1731741829565,0.11887701,91329.0,91328.0,0.1112102]
[1731741829796,0.1285676,91329.0,91328.0,0.1112102]
[1731741830454,0.1285676,91329.0,91328.0,0.0017152]
[1731741831120,0.1285668,91329.0,91328.0,0.0017152]
[1731741831767,0.1285668,91329.0,91328.0,0.1112102]
[1731741832018,0.1285668,91329.0,91328.0,0.0017152]
[1731741832432,0.1235668,91329.0,91328.0,0.1112102]
[1731741835336,0.11387701,91329.0,91328.0,0.1112102]
[1731741835578,0.12356381,91329.0,91328.0,0.1112102]
[1731741835827,0.12637854,91329.0,91328.0,0.1112102]
[1731741836473,0.1298527,91329.0,91328.0,0.1112102]
[1731741836889,0.13137853,91329.0,91328.0,0.1112102]
[1731741838202,0.12169173,91329.0,91328.0,0.1112102]
[1731741838693,0.12169173,91329.0,91328.0,0.0017152]
[1731741838898,0.1313773,91329.0,91328.0,0.1112102]
[1731741841089,0.1313773,91329.0,91328.0,0.0017152]
[1731741841717,0.14043226,91329.0,91328.0,0.0017152]
[1731741841929,0.24992626,91329.0,91328.0,0.0017152]
[1731741842155,0.005,91326.0,91317.0,0.11744979]
[1731741842372,0.1922,91324.0,91317.0,0.109507]
[1731741842612,0.11874812,91323.0,91318.0,0.109507]
[1731741842838,0.00968557,91322.0,91318.0,0.109507]
[1731741843084,0.0827,91324.0,91316.0,0.219019]
[1731741843085,0.16424047,91319.0,91316.0,0.219019]
[1731741843293,0.005,91317.0,91311.0,0.1]
[1731741843515,0.11874601,91316.0,91313.0,0.109513]
[1731741843725,0.00968346,91315.0,91313.0,0.109513]
[1731741843960,0.005,91317.0,91313.0,0.109513]
[1731741843961,0.11874601,91314.0,91313.0,0.109513]
[1731741846107,0.1235245,91314.0,91313.0,0.109513]
[1731741847020,0.11564417,91314.0,91313.0,0.109513]
[1731741847226,0.11086568,91314.0,91313.0,0.109513]
[1731741847487,0.11085759,91314.0,91313.0,0.109513]
[1731741848327,0.11965765,91314.0,91313.0,0.109513]
[1731741849967,0.11085759,91314.0,91313.0,0.109513]
[1731741850223,0.10118222,91314.0,91313.0,0.109513]
[1731741850636,0.11085602,91314.0,91313.0,0.109513]
[1731741851252,0.18865602,91314.0,91313.0,0.109513]
[1731741851462,0.11085602,91314.0,91313.0,0.109513]
[1731741851669,0.11965601,91314.0,91313.0,0.109513]
[1731741853624,0.114514,91312.0,91311.0,0.14527476]
[1731741853794,0.24873095,91312.0,91311.0,0.14527476]
[1731741854046,0.11811014,91312.0,91311.0,0.14527476]
[1731741854259,0.14326758,91312.0,91311.0,0.25478976]
[1731741855383,0.11811014,91312.0,91311.0,0.25478976]
[1731741855605,0.12778429,91312.0,91311.0,0.25478976]
[1731741857066,0.14326293,91312.0,91311.0,0.25478976]
[1731741857277,0.12778429,91312.0,91311.0,0.25478976]
[1731741857493,0.14326293,91312.0,91311.0,0.25478976]
[1731741857699,0.12778429,91312.0,91311.0,0.25478976]
[1731741857907,0.14326293,91312.0,91311.0,0.25478976]
[1731741858118,0.12778429,91312.0,91311.0,0.25478976]
[1731741858337,0.14326293,91312.0,91311.0,0.25478976]
[1731741858554,0.12778429,91312.0,91311.0,0.25478976]
[1731741858815,0.14326293,91312.0,91311.0,0.25478976]
[1731741859037,0.12778429,91312.0,91311.0,0.25478976]
[1731741859493,0.14326293,91312.0,91311.0,0.25478976]
[1731741859722,0.12778429,91312.0,91311.0,0.25478976]
[1731741859995,0.14326293,91312.0,91311.0,0.25478976]
[1731741860424,0.14826293,91312.0,91311.0,0.14527476]
[1731741860849,0.14826313,91312.0,91311.0,0.14527476]
[1731741861075,0.14326313,91312.0,91311.0,0.14527476]
[1731741861318,0.14326313,91312.0,91311.0,0.25478976]
[1731741862208,0.12778449,91312.0,91311.0,0.25478976]
[1731741864364,0.1277871,91312.0,91311.0,0.25478976]
[1731741864597,0.13176877,91312.0,91311.0,0.25478976]
[1731741864805,0.1277871,91312.0,91311.0,0.25478976]
[1731741867200,0.00967676,91312.0,91311.0,0.30318976]
[1731741867421,0.0017154,91329.0,91327.0,0.109496]
[1731741867636,0.28298607,91328.0,91327.0,0.109496]
[1731741867844,0.29685221,91328.0,91327.0,0.109496]
[1731741868076,0.13261174,91328.0,91327.0,0.109496]
[1731741871011,0.13261719,91328.0,91327.0,0.109496]
[1731741872513,0.005,91325.0,91319.0,0.219012]
[1731741872734,0.005,91325.0,91324.0,0.1095]
[1731741872941,0.02375756,91325.0,91324.0,0.1095]
[1731741873400,0.03926718,91325.0,91324.0,0.1095]
[1731741873873,0.03426718,91325.0,91324.0,0.1095]
[1731741874078,0.14332973,91325.0,91324.0,0.1095]
[1731741874303,0.12782011,91325.0,91324.0,0.1095]
[1731741874532,0.13177404,91325.0,91324.0,0.1095]
[1731741874758,0.12208043,91325.0,91324.0,0.1095]
[1731741874982,0.1408382,91325.0,91324.0,0.1095]
[1731741875217,0.13177425,91325.0,91324.0,0.1095]
[1731741876556,0.13657912,91325.0,91324.0,0.1095]
[1731741877959,0.13593526,91325.0,91324.0,0.1095]
[1731741878391,0.16491592,91325.0,91324.0,0.1095]
[1731741878631,0.005,91323.0,91322.0,0.109502]
[1731741878846,0.16115712,91323.0,91322.0,0.109502]
[1731741879065,0.16595719,91323.0,91322.0,0.109502]
[1731741880919,0.16993182,91323.0,91322.0,0.109502]
[1731741881129,0.15543057,91323.0,91322.0,0.109502]
[1731741882398,0.15543057,91323.0,91317.0,0.2198727]
[1731741882629,0.14665587,91322.0,91317.0,0.1103647]
[1731741882869,0.16319332,91321.0,91318.0,0.109507]
[1731741883091,0.14165587,91320.0,91318.0,0.109507]
[1731741883299,0.10906255,91320.0,91319.0,0.109506]
[1731741883529,0.15615288,91320.0,91319.0,0.109506]
[1731741884375,0.15615293,91320.0,91319.0,0.109506]
[1731741884812,0.10906255,91320.0,91319.0,0.109506]
[1731741885021,0.15615709,91320.0,91319.0,0.109506]
[1731741886586,0.16094997,91320.0,91319.0,0.109506]
[1731741887239,0.005,91318.0,91317.0,0.04504441]
[1731741887475,0.48777382,91318.0,91317.0,0.0008577]
[1731741887723,0.41105217,91318.0,91317.0,0.0008577]
[1731741888619,0.42553367,91318.0,91317.0,0.0008577]
[1731741889076,0.18042667,91318.0,91317.0,0.1103657]
[1731741889305,0.16594517,91318.0,91317.0,0.1103657]
[1731741890866,0.16094517,91318.0,91317.0,0.1103657]
[1731741892516,0.13741537,91318.0,91317.0,0.1590657]
[1731741892742,0.13738668,91318.0,91317.0,0.2398657]
[1731741893363,0.1325986,91318.0,91317.0,0.2398657]
[1731741893562,0.02353605,91318.0,91317.0,0.2398657]
[1731741894964,0.02353605,91318.0,91317.0,0.2418657]
[1731741895398,0.02353605,91318.0,91317.0,0.2398657]
[1731741896915,0.02353605,91318.0,91317.0,0.2418657]
[1731741897361,0.0017154,91320.0,91319.0,0.111506]
[1731741897567,0.0017154,91320.0,91319.0,0.19301573]
[1731741898098,0.0017154,91320.0,91319.0,0.24171573]
[1731741898718,0.0017154,91320.0,91319.0,0.32251573]
[1731741900002,0.0017154,91328.0,91327.0,0.111496]
[1731741900224,0.0017154,91328.0,91327.0,0.32250573]
[1731741906737,0.0017154,91328.0,91327.0,0.40401546]
[1731741906966,0.0017154,91328.0,91327.0,0.32250573]
[1731741907184,0.0017154,91328.0,91327.0,0.4203379]
[1731741907412,0.0017154,91328.0,91327.0,0.4646842]
[1731741907676,0.0017154,91328.0,91327.0,0.46468826]
[1731741908101,0.0017154,91328.0,91327.0,0.36685203]
[1731741908546,0.0017154,91328.0,91327.0,0.38314764]
[1731741908770,0.0017154,91328.0,91327.0,0.2833423]
[1731741910321,0.0017154,91328.0,91327.0,0.1538423]
[1731741915880,0.11077795,91328.0,91327.0,0.1538423]
[1731741916323,0.11968913,91328.0,91327.0,0.1538423]
[1731741916831,0.20108913,91328.0,91327.0,0.1538423]
[1731741917504,0.11968913,91328.0,91327.0,0.1538423]
[1731741918646,0.11968913,91328.0,91327.0,0.0443463]
[1731741918857,0.20608913,91328.0,91327.0,0.0443463]
[1731741919082,0.005,91326.0,91325.0,0.109498]
[1731741919323,0.11406255,91326.0,91325.0,0.109498]
[1731741919548,0.12309315,91326.0,91325.0,0.109498]
[1731741919770,0.12790042,91326.0,91325.0,0.109498]
[1731741920901,0.12790042,91326.0,91320.0,0.2198667]
[1731741921156,0.11809315,91325.0,91322.0,0.109502]
[1731741921369,0.0090306,91324.0,91322.0,0.109502]
[1731741921574,0.16469315,91323.0,91322.0,0.109502]
[1731741922014,0.16949322,91323.0,91322.0,0.109502]
[1731741922683,0.16046262,91323.0,91322.0,0.109502]
[1731741922918,0.16950469,91323.0,91322.0,0.109502]
[1731741923186,0.005,91322.0,91320.0,0.04545233]
[1731741923400,0.11810462,91321.0,91320.0,0.04545233]
[1731741923623,0.12289989,91321.0,91320.0,0.04545233]
[1731741923820,0.13195621,91321.0,91320.0,0.15495733]
[1731741925838,0.13569383,91321.0,91320.0,0.15495733]
[1731741926261,0.12665176,91321.0,91320.0,0.15495733]
[1731741926497,0.13569383,91321.0,91320.0,0.15495733]
[1731741926708,0.12663751,91321.0,91320.0,0.15495733]
[1731741928819,0.12663751,91321.0,91320.0,0.04545233]
[1731741929053,0.12663751,91321.0,91320.0,0.15495733]
[1731741929273,0.13569118,91321.0,91320.0,0.15495733]
[1731741933230,0.11759544,91321.0,91320.0,0.15495733]
[1731741933459,0.13568413,91321.0,91320.0,0.15495733]
[1731741933904,0.13568402,91321.0,91320.0,0.15495733]
[1731741934803,0.15014358,91321.0,91320.0,0.15495733]
[1731741936766,0.13568344,91321.0,91320.0,0.15495733]
[1731741937004,0.12715055,91321.0,91320.0,0.15495733]
[1731741937210,0.15010216,91321.0,91320.0,0.15495733]
[1731741938097,0.31100516,91321.0,91320.0,0.04545233]
[1731741938377,0.31100516,91321.0,91320.0,0.0008577]
[1731741938378,0.39880516,91321.0,91320.0,0.0008577]
[1731741938604,0.41328698,91321.0,91320.0,0.0008577]
[1731741941751,0.42774251,91321.0,91320.0,0.0008577]
[1731741941962,0.41328698,91321.0,91320.0,0.0008577]
[1731741942649,0.4277427,91321.0,91320.0,0.0008577]
[1731741943291,0.3897902,91321.0,91320.0,0.0008577]
[1731741943506,0.41328643,91321.0,91320.0,0.0008577]
[1731741943715,0.42774563,91321.0,91320.0,0.0008577]
[1731741945691,0.41328643,91321.0,91320.0,0.0008577]
[1731741946786,0.41330385,91321.0,91320.0,0.0008577]
[1731741947009,0.3662576,91321.0,91320.0,0.0008577]
[1731741947234,0.39881654,91321.0,91320.0,0.0008577]
[1731741947459,0.41330385,91321.0,91320.0,0.0008577]
[1731741949870,0.005,91311.0,91304.0,0.15724247]
[1731741950142,0.14162149,91310.0,91304.0,0.15724247]
[1731741950367,0.14162149,91310.0,91307.0,0.109519]
[1731741950601,0.005,91305.0,91290.0,0.295281]
[1731741950810,0.005,91305.0,91304.0,0.109524]
[1731741951230,0.02309838,91305.0,91304.0,0.109524]
[1731741951869,0.13216093,91305.0,91304.0,0.109524]
[1731741952302,0.14061545,91305.0,91304.0,0.109524]
[1731741952748,0.13561545,91305.0,91304.0,0.109524]
[1731741953429,0.13561545,91305.0,91302.0,0.219053]
[1731741953712,0.10906255,91304.0,91303.0,0.109525]
[1731741953973,0.11810503,91304.0,91303.0,0.109525]
[1731741954188,0.12716193,91304.0,91303.0,0.109525]
[1731741959197,0.11810503,91304.0,91303.0,0.109525]
[1731741959428,0.00904248,91304.0,91303.0,0.109525]
[1731741959657,0.16424047,91316.0,91303.0,0.1301]
[1731741959878,0.16424047,91316.0,91315.0,0.109511]
[1731741960104,0.19682036,91316.0,91315.0,0.109511]
[1731741960342,0.00906034,91316.0,91315.0,0.109511]
[1731741960565,0.03258147,91316.0,91315.0,0.109511]
[1731741960795,0.03258208,91316.0,91315.0,0.109511]
[1731741961229,0.14164463,91316.0,91315.0,0.109511]
[1731741961500,0.14139413,91316.0,91315.0,0.109511]
[1731741962677,0.13233318,91316.0,91315.0,0.109511]
[1731741962922,0.14139574,91316.0,91315.0,0.109511]
[1731741963401,0.12353967,91316.0,91315.0,0.109511]
[1731741963609,0.14166565,91316.0,91315.0,0.109511]
[1731741963877,0.15616712,91316.0,91315.0,0.109511]
[1731741964501,0.14166565,91316.0,91315.0,0.109511]
[1731741965595,0.14166565,91316.0,91315.0,0.1532561]
[1731741966488,0.14166565,91316.0,91315.0,0.1541136]
[1731741969563,0.12718853,91316.0,91315.0,0.1541136]
[1731741969806,0.14166731,91316.0,91315.0,0.1541136]
[1731741970234,0.1501545,91316.0,91315.0,0.1541136]
[1731741970884,0.14109194,91316.0,91315.0,0.1541136]
[1731741971519,0.13260475,91316.0,91315.0,0.1541136]
[1731741971734,0.14109194,91316.0,91315.0,0.1541136]
[1731741973471,0.14108917,91316.0,91315.0,0.1541136]
[1731741973685,0.15013699,91316.0,91315.0,0.1541136]
[1731741976173,0.13566,91316.0,91311.0,0.21903]
[1731741976381,0.00848719,91316.0,91315.0,0.109511]
[1731741976597,0.01753507,91316.0,91315.0,0.109511]
[1731741976828,0.01811008,91316.0,91315.0,0.109511]
[1731741978102,0.01811008,91316.0,91315.0,0.1112262]
[1731741978542,0.01896768,91316.0,91315.0,0.1112262]
[1731741978969,0.00990548,91316.0,91315.0,0.1892262]
[1731741979409,0.0008576,91316.0,91315.0,0.1892262]
[1731741979871,0.00990059,91316.0,91315.0,0.1892262]
[1731741980279,0.00990059,91316.0,91315.0,0.1112262]
[1731741983051,0.0008576,91316.0,91315.0,0.1112262]
[1731741983315,0.00990018,91316.0,91315.0,0.1112262]
[1731741983533,0.00990043,91316.0,91315.0,0.1112262]
[1731741984647,0.11896298,91316.0,91315.0,0.1112262]
[1731741984858,0.12802504,91316.0,91315.0,0.1112262]
[1731741985063,0.13653125,91316.0,91315.0,0.1112262]
[1731741986086,0.15100151,91316.0,91315.0,0.1112262]
[1731741987141,0.15100461,91316.0,91315.0,0.1112262]
[1731741988237,0.21090815,91316.0,91315.0,0.1112262]
[1731741988503,0.29110815,91316.0,91315.0,0.1112262]
[1731741989353,0.29110815,91316.0,91315.0,0.0017152]
[1731741989612,0.29110815,91316.0,91315.0,0.1112262]
[1731741989874,0.26759167,91316.0,91315.0,0.1112262]
[1731741990079,0.2911169,91316.0,91315.0,0.1112262]
[1731741990517,0.1655169,91316.0,91315.0,0.1112262]
[1731741993758,0.16552404,91316.0,91315.0,0.1112262]
[1731741995066,0.17920392,91316.0,91315.0,0.1112262]
[1731741997731,0.31530392,91316.0,91315.0,0.0017152]
[1731741997956,0.42481292,91316.0,91315.0,0.0017152]
[1731741998189,0.42681292,91316.0,91315.0,0.0017152]
[1731741999063,0.41313304,91316.0,91315.0,0.0017152]
[1731741999495,0.41813304,91316.0,91315.0,0.0017152]
[1731742000347,0.37103536,91316.0,91315.0,0.0017152]
[1731742000568,0.41809685,91316.0,91315.0,0.0017152]
[1731742002097,0.43177874,91316.0,91315.0,0.0017152]
[1731742002951,0.41809685,91316.0,91315.0,0.0017152]
[1731742003605,0.41808577,91316.0,91315.0,0.0017152]
[1731742004057,0.41807472,91316.0,91315.0,0.0017152]
[1731742005766,0.1311,91306.0,91301.0,0.16424047]
[1731742006000,0.15008067,91305.0,91300.0,0.08477296]
[1731742006256,0.03255062,91304.0,91302.0,0.109526]
[1731742006471,0.14161317,91303.0,91302.0,0.109526]
[1731742006906,0.10906255,91303.0,91302.0,0.109526]
[1731742007135,0.14160172,91303.0,91302.0,0.109526]
[1731742007361,0.14160172,91303.0,91285.0,0.08150973]
[1731742007608,0.03253917,91302.0,91301.0,0.109526]
[1731742007833,0.14160172,91302.0,91301.0,0.109526]
[1731742008869,0.12714825,91302.0,91301.0,0.109526]
[1731742009704,0.13189795,91302.0,91301.0,0.109526]
[1731742010351,0.12286453,91302.0,91301.0,0.109526]
[1731742010559,0.13189781,91302.0,91301.0,0.109526]
[1731742013392,0.13189781,91302.0,91301.0,0.15457357]
[1731742013624,0.13189781,91302.0,91301.0,0.15543117]
[1731742014085,0.11381225,91302.0,91301.0,0.15543117]
[1731742014199,0.13190399,91302.0,91301.0,0.15543117]
[1731742014407,0.13190399,91302.0,91301.0,0.28383117]
[1731742015460,0.13190399,91302.0,91301.0,0.20233117]
[1731742015903,0.13558032,91302.0,91301.0,0.20233117]
[1731742017618,0.12652503,91302.0,91301.0,0.20233117]
[1731742022700,0.12653306,91302.0,91301.0,0.20233117]
[1731742024456,0.12653387,91302.0,91301.0,0.20233117]
[1731742024921,0.12653387,91302.0,91301.0,0.15543117]
[1731742025606,0.11810784,91302.0,91301.0,0.15543117]
[1731742027146,0.10906255,91302.0,91301.0,0.15543117]
[1731742028392,0.0008576,91316.0,91301.0,0.04590517]
[1731742028612,0.14164016,91315.0,91314.0,0.109512]
[1731742029233,0.14642104,91315.0,91314.0,0.109512]
[1731742029442,0.14641916,91315.0,91314.0,0.109512]
[1731742030676,0.15010982,91315.0,91314.0,0.109512]
[1731742032775,0.15010882,91315.0,91314.0,0.109512]
[1731742033187,0.14105549,91315.0,91314.0,0.109512]
[1731742033423,0.15010883,91315.0,91314.0,0.109512]
[1731742034296,0.13563412,91315.0,91314.0,0.109512]
[1731742035820,0.13563412,91315.0,91314.0,0.15439722]
[1731742040472,0.13539491,91315.0,91314.0,0.15439722]
[1731742042339,0.13539491,91315.0,91314.0,0.109512]
[1731742043479,0.14987491,91315.0,91314.0,0.109512]
[1731742043906,0.14987854,91315.0,91314.0,0.109512]
[1731742044110,0.14988185,91315.0,91314.0,0.109512]
[1731742044535,0.13540185,91315.0,91314.0,0.109512]
[1731742047337,0.13540722,91315.0,91314.0,0.109512]
[1731742049533,0.14989425,91315.0,91314.0,0.109512]
[1731742050153,0.15075195,91315.0,91314.0,0.109512]
[1731742053959,0.11815258,91315.0,91314.0,0.109512]
[1731742054207,0.15075882,91315.0,91314.0,0.109512]
[1731742054841,0.14169746,91315.0,91314.0,0.109512]
[1731742055052,0.15076015,91315.0,91314.0,0.109512]
[1731742057547,0.13627099,91315.0,91314.0,0.109512]
[1731742057959,0.15075919,91315.0,91314.0,0.109512]
[1731742058166,0.13627035,91315.0,91314.0,0.109512]
[1731742059226,0.15075725,91315.0,91314.0,0.109512]
[1731742059387,0.02744701,91315.0,91314.0,0.109512]
[1731742059549,0.01897547,91315.0,91314.0,0.109512]
[1731742060410,0.00991342,91315.0,91314.0,0.109512]
[1731742060813,0.00991342,91315.0,91314.0,0.156212]
[1731742060989,0.00991342,91315.0,91314.0,0.238112]
[1731742061200,0.00991342,91315.0,91314.0,0.3853344]
[1731742061201,0.0008577,91315.0,91314.0,0.3853344]
[1731742061709,0.0008577,91315.0,91314.0,0.238112]
[1731742061913,0.0008577,91315.0,91314.0,0.60213047]
[1731742062546,0.0008577,91315.0,91314.0,0.79836165]
[1731742062692,0.0008577,91315.0,91314.0,0.60213047]
[1731742063098,0.0008577,91315.0,91314.0,0.79831164]
[1731742063302,0.0008577,91315.0,91314.0,0.60213047]
[1731742064256,0.0008577,91315.0,91314.0,0.79828742]
[1731742065125,0.0008577,91315.0,91314.0,0.60213047]
[1731742068211,0.0008577,91315.0,91314.0,0.74918019]
[1731742070167,0.0008577,91315.0,91314.0,0.74871872]
[1731742070383,0.0008577,91315.0,91314.0,0.38686583]
[1731742071538,0.0008577,91315.0,91314.0,0.33784618]
[1731742071746,0.0008577,91315.0,91314.0,0.2398272]
[1731742072615,0.0008577,91315.0,91314.0,0.1579272]
[1731742079785,0.0008577,91315.0,91314.0,0.1112272]
[1731742082807,0.15742025,91315.0,91314.0,0.1112272]
[1731742083018,0.17539297,91315.0,91314.0,0.1112272]
[1731742083224,0.18390274,91315.0,91314.0,0.1112272]
[1731742083437,0.19818228,91315.0,91314.0,0.1112272]
[1731742083840,0.18390274,91315.0,91314.0,0.1112272]
[1731742084691,0.18390307,91315.0,91314.0,0.1112272]
[1731742085775,0.26150307,91315.0,91314.0,0.1112272]
[1731742085989,0.26150307,91315.0,91314.0,0.0017152]
[1731742086205,0.26150307,91315.0,91314.0,0.1112272]
[1731742086865,0.27578184,91315.0,91314.0,0.0017152]
[1731742087495,0.38529284,91315.0,91314.0,0.0017152]
[1731742087719,0.46680257,91315.0,91314.0,0.0017152]
[1731742088830,0.4545238,91315.0,91314.0,0.0017152]
[1731742089469,0.4525238,91315.0,91314.0,0.0017152]
[1731742090272,0.53010866,91315.0,91314.0,0.0017152]
[1731742090612,0.56049013,91315.0,91314.0,0.0017152]
[1731742090826,0.57475678,91315.0,91314.0,0.0017152]
[1731742091236,0.56584,91315.0,91314.0,0.0017152]
[1731742091442,0.57475663,91315.0,91314.0,0.0017152]
[1731742091886,0.58901822,91315.0,91314.0,0.0017152]
[1731742092320,0.57475663,91315.0,91314.0,0.0017152]
[1731742092943,0.57475663,91315.0,91296.0,0.08341721]
[1731742092944,0.002,91305.0,91296.0,0.08341721]
[1731742093178,0.002,91305.0,91280.0,0.16424047]
[1731742093179,0.08150973,91303.0,91280.0,0.16424047]
[1731742093416,0.12702736,91302.0,91298.0,0.10953]
[1731742093601,0.01796481,91301.0,91298.0,0.10953]
[1731742093823,0.11750385,91302.0,91298.0,0.10953]
[1731742093824,0.12702736,91300.0,91298.0,0.10953]
[1731742094006,0.01796481,91299.0,91298.0,0.10953]
[1731742094152,0.12702736,91299.0,91298.0,0.10953]
[1731742094566,0.11796864,91299.0,91298.0,0.10953]
[1731742094773,0.12699841,91299.0,91298.0,0.10953]
[1731742094976,0.12699842,91299.0,91298.0,0.10953]
[1731742095361,0.11796866,91299.0,91298.0,0.10953]
[1731742096850,0.12271116,91299.0,91298.0,0.10953]
[1731742097728,0.12271116,91299.0,91292.0,0.219077]
[1731742097729,0.1247,91298.0,91291.0,0.264438]
[1731742097935,0.11796866,91297.0,91291.0,0.264438]
[1731742098163,0.08150973,91295.0,91292.0,0.219077]
[1731742098375,0.12269916,91294.0,91293.0,0.109537]
[1731742099438,0.1226956,91294.0,91293.0,0.109537]
[1731742101306,0.11379305,91294.0,91293.0,0.109537]
[1731742101504,0.16839642,91294.0,91293.0,0.109537]
[1731742104134,0.12269642,91294.0,91293.0,0.109537]
[1731742104564,0.11379305,91294.0,91293.0,0.109537]
[1731742105236,0.10906255,91294.0,91293.0,0.109537]
[1731742108403,0.11797334,91294.0,91293.0,0.109537]
[1731742108813,0.01731057,91294.0,91293.0,0.239037]
[1731742109023,0.00839978,91294.0,91293.0,0.239037]
[1731742109256,0.16424047,91311.0,91309.0,0.109518]
[1731742109464,0.16424047,91311.0,91310.0,0.109517]
[1731742109684,0.17315641,91311.0,91310.0,0.109517]
[1731742109894,0.00891594,91311.0,91310.0,0.109517]
[1731742111454,0.01426389,91318.0,91314.0,0.109512]
[1731742111666,0.00977418,91315.0,91314.0,0.109512]
[1731742111880,0.11883673,91315.0,91314.0,0.109512]
[1731742112087,0.10992025,91315.0,91314.0,0.109512]
[1731742114295,0.10992025,91315.0,91314.0,0.15506785]
[1731742121807,0.0008577,91315.0,91314.0,0.15506785]
[1731742126634,0.0008577,91315.0,91314.0,0.23657758]
[1731742126853,7e-07,91315.0,91314.0,0.37587758]
[1731742128397,0.0017154,91321.0,91320.0,0.109505]
[1731742128623,0.0017154,91321.0,91320.0,0.24871473]
[1731742128836,4e-07,91321.0,91320.0,0.33031473]
[1731742129070,4e-07,91328.0,91326.0,0.005]
[1731742129312,4e-07,91328.0,91327.0,0.19600573]
[1731742139867,4e-07,91328.0,91327.0,0.19100573]
[1731742141216,4e-07,91328.0,91327.0,0.109496]